bitfinex-derivatives/quotes_ETHF0:USTF0_20260112
["timestamp","ask_amount","ask_price","bid_price","bid_amount"]
[1768238582233,0.40424775,3125.8,3124.2,0.13462991]
[1768238582431,0.40424775,3125.7,3124.2,0.13462991]
[1768238582631,4.86424775,3125.6,3124.2,0.13462991]
[1768238582832,0.40424775,3125.5,3124.2,0.13462991]
[1768238584529,1.66124775,3125.5,3124.2,0.13462991]
[1768238584724,1.66124775,3125.4,3124.2,0.13462991]
[1768238584929,1.257,3125.4,3124.2,0.13462991]
[1768238585833,3.203,3125.8,3124.3,0.14122064]
[1768238586035,1.257,3125.6,3124.3,0.14122064]
[1768238586235,0.40495457,3125.5,3124.3,0.14122064]
[1768238589138,1.256,3125.7,3124.4,0.14122064]
[1768238589439,1.256,3125.8,3124.4,0.14122064]
[1768238589633,1.256,3125.8,3124.6,0.14122064]
[1768238589841,0.0037276,3126.0,3124.6,0.14122064]
[1768238590038,1.650445,3125.9,3124.6,0.14122064]
[1768238590239,0.394445,3125.8,3124.6,0.14122064]
[1768238591434,0.394445,3125.8,3125.1,6.73209402]
[1768238594648,1.256,3125.7,3125.1,6.73209402]
[1768238594941,0.0037276,3126.0,3125.2,0.13833362]
[1768238595145,1.2597276,3126.0,3125.2,0.13833362]
[1768238595330,0.0037276,3126.0,3125.2,0.13833362]
[1768238596540,0.0037276,3126.0,3125.1,6.73209402]
[1768238596742,0.39461421,3125.9,3125.1,6.73209402]
[1768238597039,0.0037276,3126.0,3125.1,6.73209402]
[1768238597040,0.39463692,3125.8,3125.1,6.73209402]
[1768238597247,0.0037276,3126.0,3125.1,6.73209402]
[1768238597544,0.39461895,3125.9,3125.1,6.73209402]
[1768238597737,0.39461895,3125.8,3125.1,6.73209402]
[1768238597932,0.0037276,3126.0,3125.1,6.73209402]
[1768238598136,1.65054107,3125.9,3125.1,6.87042764]
[1768238598342,1.256,3125.9,3124.6,0.13833362]
[1768238598540,1.256,3125.9,3125.3,6.73209402]
[1768238599636,0.0037276,3126.0,3125.4,0.13833362]
[1768238600035,3.203,3126.9,3125.4,0.13833362]
[1768238600246,1.65068749,3126.8,3125.9,6.73209402]
[1768238600442,0.14684044,3126.6,3125.9,6.73209402]
[1768238600651,0.14684044,3126.6,3124.9,0.13833362]
[1768238600847,0.14684044,3126.6,3125.4,6.73209402]
[1768238601149,0.14942148,3126.6,3125.4,6.73209402]
[1768238601543,0.14942148,3126.6,3124.5,0.13833362]
[1768238601749,0.14684044,3126.2,3124.5,0.16015]
[1768238601948,0.14684044,3126.2,3124.6,6.73209402]
[1768238602145,0.39433764,3126.1,3124.6,6.73209402]
[1768238602349,0.14684044,3126.2,3124.6,6.73209402]
[1768238602544,0.14684044,3126.0,3124.6,6.73209402]
[1768238602735,0.14684044,3126.0,3124.7,6.73209402]
[1768238602935,0.54119408,3125.9,3124.7,6.73209402]
[1768238603139,0.39435364,3125.8,3124.7,6.73209402]
[1768238603450,0.14684044,3125.9,3124.7,6.73209402]
[1768238603746,0.39440627,3125.8,3124.7,6.73209402]
[1768238603945,0.14684044,3125.9,3124.9,6.73209402]
[1768238604146,0.39436701,3125.8,3124.9,6.73209402]
[1768238604348,0.14684044,3125.9,3124.9,6.73209402]
[1768238604543,0.39435842,3125.8,3124.9,6.73209402]
[1768238604743,0.14684044,3125.9,3124.9,6.73209402]
[1768238604945,0.39435407,3125.8,3124.9,6.73209402]
[1768238605146,0.14684044,3125.9,3124.9,6.73209402]
[1768238605345,0.39438158,3125.8,3124.9,6.73209402]
[1768238605545,0.14684044,3125.9,3124.9,6.73209402]
[1768238605754,0.39438646,3125.8,3124.9,6.73209402]
[1768238605945,0.39434808,3125.7,3124.9,6.73209402]
[1768238606146,1.256,3125.6,3124.9,6.73209402]
[1768238608546,0.00479747,3126.3,3124.9,6.73209402]
[1768238608752,4.85349507,3126.2,3124.9,6.73209402]
[1768238608952,0.14684044,3126.0,3124.9,6.73209402]
[1768238609147,0.39449507,3125.9,3124.9,6.73209402]
[1768238609354,0.39449507,3125.8,3124.9,6.73209402]
[1768238609541,0.39449507,3125.7,3124.9,6.73209402]
[1768238609747,0.14684044,3126.0,3124.9,6.73209402]
[1768238610054,0.39458427,3125.9,3124.9,6.73209402]
[1768238610259,0.54142471,3125.8,3124.2,0.13833362]
[1768238610447,0.39458427,3125.7,3124.2,0.13833362]
[1768238610646,0.39458427,3125.6,3124.2,0.13833362]
[1768238610846,0.39458427,3125.5,3124.2,0.13833362]
[1768238611049,0.14684044,3125.8,3124.2,0.13833362]
[1768238611247,0.39456698,3125.7,3124.2,0.13833362]
[1768238611450,0.39456698,3125.6,3124.2,0.13833362]
[1768238611643,0.39456698,3125.5,3124.2,0.13833362]
[1768238611848,0.39456698,3125.5,3123.9,0.16018]
[1768238611849,0.39455857,3125.4,3124.0,0.13833362]
[1768238612048,0.14684044,3125.7,3123.9,0.16018]
[1768238612049,1.65055857,3125.3,3123.9,0.16018]
[1768238612250,1.40284044,3125.3,3123.8,0.00399825]
[1768238612450,0.3945075,3125.2,3123.8,0.00399825]
[1768238612757,0.3945075,3125.1,3123.8,0.00399825]
[1768238612957,1.40284044,3125.3,3123.8,0.00399825]
[1768238613159,0.39441035,3125.2,3123.8,0.00399825]
[1768238613354,0.54125079,3125.1,3123.8,0.00399825]
[1768238613562,3.5973426,3125.0,3123.8,0.00399825]
[1768238613753,3.203,3125.0,3123.8,0.00399825]
[1768238614355,0.39422116,3124.9,3123.8,0.00399825]
[1768238614658,0.00479747,3124.7,3123.8,0.00399825]
[1768238619552,0.00479747,3124.7,3123.5,1.13273004]
[1768238619553,0.14382595,3124.5,3123.5,1.13273004]
[1768238620063,0.14382595,3124.3,3122.7,0.13850998]
[1768238620250,1.64929317,3124.2,3121.9,0.16028]
[1768238620450,0.14382595,3123.4,3121.9,0.00356308]
[1768238620651,4.85229317,3123.3,3121.9,0.00356308]
[1768238620851,0.14382595,3123.2,3121.9,0.00356308]
[1768238621454,0.00479747,3122.9,3121.9,0.00356308]
[1768238621655,0.892,3122.8,3121.9,0.00356308]
[1768238622668,0.00479747,3122.9,3121.9,0.00356308]
[1768238622962,1.26079747,3122.9,3121.9,0.00356308]
[1768238623163,0.14382595,3122.8,3121.9,0.00356308]
[1768238623353,1.256,3122.7,3121.9,0.00356308]
[1768238623857,0.00479747,3122.9,3121.9,0.00356308]
[1768238624861,0.14862342,3122.9,3121.9,0.00356308]
[1768238625858,0.14862342,3122.9,3120.4,0.13850998]
[1768238626162,0.14862342,3122.9,3116.4,15.9560755]
[1768238626163,0.14382595,3121.7,3119.4,0.16041]
[1768238626362,0.14382595,3121.5,3119.4,0.16041]
[1768238626553,0.14382595,3121.4,3119.0,0.13850998]
[1768238626753,0.14782781,3121.4,3119.1,0.13850998]
[1768238626965,0.14782781,3121.4,3119.0,0.0034549]
[1768238626966,0.14782781,3121.4,3119.5,0.1604]
[1768238627162,0.14382595,3121.2,3119.0,0.0034549]
[1768238627367,0.14382595,3121.2,3117.0,0.13850998]
[1768238627368,0.16038,3120.0,3117.0,0.13850998]
[1768238627569,0.14382595,3119.8,3117.0,0.13850998]
[1768238627761,0.14382595,3119.6,3116.6,0.15612457]
[1768238627963,0.14382595,3119.6,3117.2,0.13850998]
[1768238628170,0.14382595,3119.5,3117.2,0.13850998]
[1768238628374,0.14382595,3119.5,3117.5,0.13850998]
[1768238628576,0.29,3119.5,3117.9,0.13850998]
[1768238628870,0.14382595,3120.2,3118.0,0.16048]
[1768238629071,0.179,3120.1,3118.0,0.29898998]
[1768238629373,4.462,3120.0,3118.0,0.29898998]
[1768238630264,4.60582595,3120.0,3118.0,0.29898998]
[1768238630465,4.462,3119.9,3118.0,0.29898998]
[1768238630662,3.206,3120.1,3118.3,0.13850998]
[1768238630868,1.257,3119.9,3118.3,0.13850998]
[1768238631267,1.257,3120.1,3118.3,0.13850998]
[1768238631470,0.736,3120.3,3118.5,2.1143288]
[1768238631774,3.206,3120.5,3118.7,0.29894998]
[1768238631959,0.14382595,3121.2,3118.8,0.13850998]
[1768238632271,3.583,3121.1,3119.1,0.13850998]
[1768238632466,0.14382595,3121.2,3119.2,0.13850998]
[1768238632661,4.463,3121.1,3119.2,0.13850998]
[1768238632864,1.257,3121.1,3119.2,0.13850998]
[1768238633064,0.14382595,3121.2,3119.2,0.13850998]
[1768238633271,1.257,3121.2,3119.5,1.97581882]
[1768238633467,1.257,3121.2,3119.5,0.00321168]
[1768238633672,1.40082595,3121.2,3119.5,0.00321168]
[1768238634081,0.14382595,3121.2,3119.5,0.00321168]
[1768238634280,4.464,3121.1,3119.5,0.00321168]
[1768238635080,0.14382595,3121.2,3119.5,0.00321168]
[1768238635284,4.148,3121.1,3119.5,0.00321168]
[1768238635890,4.29182595,3121.1,3119.5,0.16361168]
[1768238636790,0.14382595,3121.1,3119.5,0.16361168]
[1768238637190,1.40182595,3121.1,3119.5,0.16361168]
[1768238637990,0.00400186,3121.4,3119.9,0.16038]
[1768238638490,0.14782781,3121.4,3119.9,0.16038]
[1768238639587,0.00400186,3121.4,3119.9,0.16038]
[1768238639783,0.00400186,3121.4,3120.2,0.16037]
[1768238640289,0.00400186,3121.4,3120.3,0.16036]
[1768238640687,0.00400186,3121.4,3119.7,0.13850998]
[1768238640688,0.00400186,3121.4,3120.4,0.16036]
[1768238642078,0.00400186,3121.4,3120.5,0.16035]
[1768238642387,1.258,3122.2,3120.5,6.0]
[1768238642684,1.40182595,3122.4,3120.8,0.16034]
[1768238642981,1.40182595,3122.4,3120.2,0.16037]
[1768238642982,0.14382595,3122.3,3120.2,0.16037]
[1768238643175,0.14778732,3122.3,3120.2,0.16037]
[1768238643378,0.14382595,3121.9,3119.7,0.13850998]
[1768238643589,0.14382595,3121.9,3119.7,0.29889998]
[1768238643985,0.14382595,3121.9,3119.8,0.16039]
[1768238644180,4.465,3121.8,3119.7,0.13850998]
[1768238644581,0.14382595,3121.9,3120.2,0.16037]
[1768238644781,0.14382595,3121.9,3120.3,0.16036]
[1768238644982,1.40182595,3121.9,3120.3,0.16036]
[1768238645179,0.14382595,3121.9,3120.5,0.16035]
[1768238645390,0.00396137,3122.3,3120.6,0.16035]
[1768238645593,4.46896137,3122.3,3120.7,0.16034]
[1768238646991,4.46896137,3122.3,3120.4,2.12051759]
[1768238646992,4.46896137,3122.3,3120.8,0.16034]
[1768238648986,0.00396137,3122.3,3121.0,0.16033]
[1768238649382,0.14477589,3122.3,3121.0,0.16033]
[1768238658292,0.00396137,3122.3,3121.2,0.16032]
[1768238660199,0.00396137,3122.3,3121.3,0.16031]
[1768238660601,0.00396137,3122.3,3121.4,0.16031]
[1768238662291,0.00396137,3122.3,3120.8,0.16034]
[1768238662498,0.00396137,3122.3,3120.9,0.16033]
[1768238666003,0.13829995,3122.3,3120.9,0.16033]
[1768238667799,1.43337736,3122.2,3120.4,0.16036]
[1768238668103,0.13433858,3122.2,3120.5,0.16035]
[1768238668695,0.90604928,3122.1,3120.5,0.16035]
[1768238668896,0.13433858,3122.0,3120.5,0.16035]
[1768238669704,0.13433858,3122.0,3120.2,6.363]
[1768238669904,0.13433858,3121.8,3120.2,6.363]
[1768238670102,0.00396137,3122.3,3119.6,4.00506909]
[1768238670103,0.13433858,3121.6,3119.6,4.00506909]
[1768238670303,0.13433858,3121.6,3119.3,0.16041]
[1768238670304,0.13433858,3121.4,3119.3,0.16041]
[1768238670495,0.13433858,3121.2,3119.3,0.16041]
[1768238671296,0.13433858,3120.9,3118.9,4.00506909]
[1768238671502,0.13433858,3120.7,3118.6,4.31127382]
[1768238672001,0.13433858,3120.7,3118.6,0.30620473]
[1768238672204,0.13433858,3120.5,3118.6,0.30620473]
[1768238672402,0.13433858,3120.5,3118.2,1.97581882]
[1768238672403,0.13433858,3119.3,3118.0,4.00506909]
[1768238672602,1.39133858,3119.2,3117.5,0.1605]
[1768238672804,4.59733858,3119.2,3117.7,1.97581882]
[1768238672998,1.257,3119.3,3117.7,1.97581882]
[1768238673306,1.25970865,3119.3,3117.7,1.97920748]
[1768238674301,0.16038,3120.1,3117.7,1.97920748]
[1768238674302,3.207,3120.1,3118.2,2.13628882]
[1768238674604,0.13433858,3120.2,3118.4,0.16046]
[1768238674800,1.39133858,3120.2,3118.4,0.16046]
[1768238675002,3.207,3120.3,3118.7,1.97581882]
[1768238675202,0.00275658,3120.3,3118.7,1.97581882]
[1768238675409,0.14211738,3120.2,3118.5,0.16045]
[1768238675608,0.00275658,3120.3,3118.6,0.16045]
[1768238675804,0.00275658,3120.3,3118.9,1.97581882]
[1768238676009,0.00275658,3120.3,3118.9,2.13625882]
[1768238678816,0.00275658,3120.3,3119.2,0.16042]
[1768238680718,3.207,3121.1,3119.3,0.16041]
[1768238680914,0.14211738,3121.2,3119.3,0.16041]
[1768238681213,4.464,3121.1,3119.4,0.16041]
[1768238681717,0.00355242,3121.1,3119.5,0.1604]
[1768238681902,0.00355242,3121.1,3119.6,0.1604]
[1768238683007,0.00355242,3121.1,3119.7,0.16039]
[1768238684212,0.00355242,3121.1,3119.9,2.13619882]
[1768238684407,0.00355242,3121.1,3119.9,2.13954319]
[1768238685222,0.00355242,3121.1,3120.0,0.16038]
[1768238688323,0.14211738,3122.5,3120.4,1.97581882]
[1768238688524,4.60611738,3122.4,3120.4,2.12036371]
[1768238689520,4.60988397,3122.4,3120.4,0.14454489]
[1768238689724,0.14588397,3122.4,3120.7,0.16034]
[1768238690820,0.14588397,3122.4,3120.8,0.16033]
[1768238691717,0.14588397,3122.4,3120.9,0.16033]
[1768238692120,0.00376659,3122.4,3121.0,0.16033]
[1768238694429,0.00376659,3122.4,3121.3,0.16031]
[1768238695023,0.84086266,3123.1,3121.3,0.30485489]
[1768238695330,0.14211738,3123.0,3121.3,0.16031]
[1768238696123,0.1461253,3123.0,3121.3,0.16031]
[1768238698530,0.1461253,3123.0,3120.5,6.363]
[1768238698531,0.3063553,3123.0,3120.5,6.363]
[1768238698727,0.14211738,3122.9,3120.9,0.16033]
[1768238699233,0.14211738,3122.8,3120.9,0.16033]
[1768238699425,0.14211738,3122.6,3120.4,0.16036]
[1768238699624,0.14211738,3122.6,3120.6,0.16035]
[1768238700223,0.14211738,3122.5,3120.6,0.16035]
[1768238700521,0.015,3122.9,3120.3,6.363]
[1768238700522,0.14211738,3122.0,3120.3,6.363]
[1768238700828,0.14211738,3121.8,3119.9,0.00334437]
[1768238701133,0.14211738,3121.6,3119.9,0.00334437]
[1768238702028,4.463,3121.5,3119.9,0.00334437]
[1768238702232,0.14211738,3121.4,3119.9,0.00334437]
[1768238703134,0.14211738,3121.4,3119.9,0.16372437]
[1768238704131,0.14211738,3121.9,3120.1,0.16037]
[1768238704432,1.39911738,3121.9,3120.1,0.16037]
[1768238705035,0.14436839,3121.8,3120.1,0.16037]
[1768238710941,0.14436839,3122.2,3120.0,0.14053337]
[1768238711239,0.14436839,3122.0,3120.0,0.14053337]
[1768238712538,0.14436839,3122.0,3120.3,0.16036]
[1768238713935,0.14436839,3122.0,3119.9,0.00334437]
[1768238713936,0.13475429,3121.9,3119.9,0.00334437]
[1768238715634,0.13475429,3121.8,3119.9,0.00334437]
[1768238715835,0.13475429,3121.0,3119.9,0.00334437]
[1768238716045,0.13475429,3121.0,3118.7,4.00506909]
[1768238716046,0.13475429,3120.9,3118.7,4.00506909]
[1768238716236,0.13475429,3120.9,3118.7,0.16044]
[1768238716543,0.13475429,3120.9,3118.9,0.16044]
[1768238716846,0.13475429,3120.9,3119.2,0.16042]
[1768238717032,0.13475429,3120.9,3119.2,0.16409161]
[1768238717241,0.13475429,3120.9,3119.3,0.16041]
[1768238717434,0.13475429,3120.9,3119.2,0.14438682]
[1768238717738,0.13475429,3120.9,3119.2,0.00367161]
[1768238718747,0.13475429,3120.1,3118.5,4.00506909]
[1768238718935,0.13475429,3120.1,3118.4,0.25166212]
[1768238719640,0.13475429,3120.1,3118.4,0.16046]
[1768238719846,0.1377444,3120.1,3118.4,0.16280704]
[1768238720642,4.6017444,3120.1,3118.4,0.00234704]
[1768238720948,0.13475429,3120.0,3118.4,0.00234704]
[1768238721146,0.13475429,3119.9,3118.4,0.16280704]
[1768238721547,0.00299011,3120.1,3118.5,0.16046]
[1768238721747,0.1377444,3120.1,3118.5,0.16046]
[1768238722547,0.1377444,3120.1,3118.4,0.00234704]
[1768238723147,0.1377444,3120.1,3118.9,0.00480531]
[1768238725642,0.13475429,3120.0,3118.4,0.00234704]
[1768238725847,0.13475429,3119.7,3118.4,0.00234704]
[1768238728153,0.13475429,3119.7,3118.4,0.16280704]
[1768238728454,0.13475429,3119.7,3118.4,0.00234704]
[1768238728653,0.13475429,3119.6,3117.7,0.16049]
[1768238729652,0.13475429,3119.6,3117.7,0.16378614]
[1768238730151,0.13475429,3119.4,3117.7,0.16378614]
[1768238730552,0.13475429,3119.4,3117.7,0.00329614]
[1768238730748,0.13475429,3119.2,3117.7,0.00329614]
[1768238730950,0.13475429,3119.0,3117.7,0.00329614]
[1768238731145,0.13475429,3118.9,3116.6,0.17816459]
[1768238731347,0.13475429,3118.7,3116.6,0.17816459]
[1768238732050,0.00480531,3118.0,3116.6,0.17816459]
[1768238732255,0.00480531,3118.0,3116.6,0.18148276]
[1768238732848,0.1395596,3118.0,3116.6,0.18148276]
[1768238733350,0.1395596,3118.0,3116.6,0.02093276]
[1768238736159,0.1395596,3118.0,3108.0,6.363]
[1768238736160,0.14508752,3117.4,3115.6,0.1606]
[1768238736456,6.16528531,3118.0,3114.9,0.14118264]
[1768238736457,0.14508752,3117.2,3115.0,0.14118264]
[1768238736647,0.14508752,3117.2,3114.9,0.05584821]
[1768238736852,0.14508752,3117.2,3114.9,0.14118264]
[1768238737053,0.00481332,3116.4,3115.4,0.16061]
[1768238737250,0.14825699,3117.2,3115.4,0.16061]
[1768238738557,0.14508752,3117.1,3115.4,0.16061]
[1768238739159,0.14508752,3117.1,3114.9,0.16475031]
[1768238739364,0.14508752,3117.1,3115.3,0.03692]
[1768238739666,0.14508752,3117.0,3115.3,0.03692]
[1768238740361,0.14508752,3116.9,3115.3,0.03692]
[1768238740765,0.14508752,3116.7,3115.3,0.03692]
[1768238741364,0.14508752,3116.5,3114.9,0.00411031]
[1768238741753,0.14508752,3116.5,3115.0,0.16063]
[1768238742560,0.14508752,3116.5,3115.1,0.16063]
[1768238742756,4.61308752,3117.0,3115.1,0.16063]
[1768238742955,0.14508752,3116.9,3115.1,0.16063]
[1768238744161,4.468,3117.0,3115.1,0.16063]
[1768238744162,0.14508752,3116.8,3115.1,0.16063]
[1768238744364,0.14508752,3116.8,3114.9,0.00411031]
[1768238744656,0.14508752,3116.7,3114.9,0.00411031]
[1768238744857,0.14508752,3116.6,3114.9,0.00411031]
[1768238745454,0.14508752,3116.4,3114.9,0.00411031]
[1768238746365,0.14508752,3116.3,3114.9,0.00411031]
[1768238746661,1.258,3116.6,3114.9,0.00411031]
[1768238746859,0.14508752,3116.8,3115.0,0.16064]
[1768238747057,0.14508752,3116.7,3115.0,0.16064]
[1768238751970,0.30563752,3116.7,3114.9,0.00411031]
[1768238752271,0.14508752,3116.6,3114.9,0.00411031]
[1768238753272,0.14508752,3115.6,3113.7,1.16825548]
[1768238753566,0.30573752,3114.8,3113.7,0.87382892]
[1768238753766,0.16065,3114.8,3113.7,0.80858916]
[1768238754072,6.0,3114.7,3112.9,0.14118264]
[1768238754371,6.1,3114.6,3112.9,0.00346752]
[1768238754675,0.00314557,3114.7,3112.9,0.14465016]
[1768238755080,0.00481332,3114.1,3113.1,0.14118264]
[1768238755975,0.00314557,3114.7,3113.1,8.1213225]
[1768238756177,0.00314557,3114.7,3113.3,0.14118264]
[1768238756873,0.00314557,3114.7,3113.4,0.14118264]
[1768238757973,0.00314557,3114.7,3112.9,0.14465016]
[1768238758174,0.16379557,3114.7,3112.9,0.14465016]
[1768238758677,0.00314557,3114.7,3112.9,0.14465016]
[1768238760078,0.00314557,3114.7,3113.0,0.14118264]
[1768238760577,0.16066,3114.6,3113.0,0.14118264]
[1768238761473,0.16067,3114.4,3112.9,0.00346752]
[1768238761678,0.16067,3114.4,3112.9,0.14465016]
[1768238762480,0.00314557,3114.7,3112.9,0.14465016]
[1768238763378,0.00314557,3114.7,3113.1,0.14118264]
[1768238764189,0.00314557,3114.7,3113.5,0.14118264]
[1768238764367,3.213,3115.6,3113.7,2.12112249]
[1768238764684,1.259,3116.4,3114.1,0.14098263]
[1768238764685,0.16058,3116.1,3114.1,0.14098263]
[1768238764882,1.259,3116.4,3114.1,0.14098263]
[1768238764883,1.98013986,3115.8,3114.1,0.14098263]
[1768238765189,0.16064,3115.0,3113.5,0.14098263]
[1768238765375,0.16064,3115.0,3112.9,0.00346752]
[1768238765376,1.98013986,3114.3,3112.9,0.00346752]
[1768238765580,1.98013986,3113.8,3111.9,0.14098263]
[1768238765879,5.37278718,3113.7,3111.9,0.14098263]
[1768238766176,0.90076682,3113.6,3110.7,0.14098263]
[1768238766380,4.472,3113.7,3110.7,0.14098263]
[1768238766381,0.01633061,3113.2,3110.7,0.14098263]
[1768238766573,0.90076682,3113.1,3110.7,0.14409956]
[1768238766781,0.16075,3112.8,3110.7,0.14409956]
[1768238767082,0.00407379,3112.8,3111.2,0.14098263]
[1768238767582,0.00407379,3112.8,3111.7,0.14098263]
[1768238767779,0.00407379,3112.8,3111.7,6.14098263]
[1768238768075,0.00407379,3112.8,3111.1,0.14098263]
[1768238769386,0.00407379,3112.8,3111.3,0.14098263]
[1768238769583,0.00407379,3112.8,3110.7,0.14409956]
[1768238770083,0.00407379,3112.8,3111.0,0.14098263]
[1768238774380,0.00407379,3112.8,3111.2,0.1343234]
[1768238774579,1.259,3113.3,3111.1,1.98013986]
[1768238774580,0.03917368,3115.5,3112.8,0.1343234]
[1768238774782,0.16066,3114.6,3112.8,0.1343234]
[1768238774979,3.215,3114.5,3112.8,0.1343234]
[1768238775180,3.215,3114.5,3112.0,0.1343234]
[1768238775382,0.16069,3114.1,3112.0,0.1343234]
[1768238775575,0.16382479,3114.1,3112.0,0.1343234]
[1768238777485,0.00313479,3114.1,3112.3,0.1343234]
[1768238777891,0.1607,3113.9,3112.3,0.1343234]
[1768238778184,1.98013986,3113.8,3111.7,0.1343234]
[1768238778387,0.16075,3112.9,3110.9,0.1343234]
[1768238778588,4.63475,3112.9,3110.9,0.1343234]
[1768238779388,0.00481332,3113.4,3111.2,0.1343234]
[1768238779593,0.16074,3113.1,3111.2,0.1343234]
[1768238781588,4.474,3113.3,3111.3,0.16083]
[1768238781796,4.474,3113.3,3111.5,0.1343234]
[1768238783695,4.474,3113.3,3111.6,0.1343234]
[1768238783888,0.00481332,3113.4,3111.6,2.27527326]
[1768238784097,0.00481332,3113.4,3111.7,0.1343234]
[1768238784685,0.00481332,3113.4,3112.0,0.1343234]
[1768238784898,0.00481332,3113.4,3112.1,0.2951134]
[1768238785102,3.215,3114.2,3112.4,0.2950934]
[1768238785399,2.83070966,3115.1,3113.0,0.1343234]
[1768238785400,0.16065,3114.8,3113.0,0.1343234]
[1768238785699,0.16065,3114.8,3113.0,0.00339774]
[1768238785996,3.215,3115.0,3113.0,0.13772114]
[1768238786701,3.37564,3115.0,3113.0,0.13772114]
[1768238786889,3.37564,3115.0,3113.0,0.29846114]
[1768238787099,3.37564,3115.0,3113.1,0.1343234]
[1768238787595,0.1606,3115.7,3113.3,0.1343234]
[1768238787790,1.06097261,3115.6,3113.5,0.1343234]
[1768238787990,0.90036261,3115.5,3113.5,0.1343234]
[1768238788198,1.98013986,3114.3,3113.0,0.00339774]
[1768238788387,5.37536261,3114.2,3112.4,0.1343234]
[1768238788594,0.04455801,3114.0,3111.9,0.1343234]
[1768238788792,10.475,3114.2,3111.9,0.1343234]
[1768238788793,0.16071,3113.6,3111.9,0.1343234]
[1768238789001,0.16073,3113.3,3111.3,0.1343234]
[1768238789503,0.16488932,3113.3,3111.3,0.13672969]
[1768238789799,0.16073,3113.2,3111.3,0.13672969]
[1768238790110,0.00415932,3113.3,3111.3,0.13672969]
[1768238790111,0.16075,3112.9,3111.3,0.13672969]
[1768238790296,4.475,3112.8,3111.3,0.13672969]
[1768238790597,4.475,3112.8,3111.3,0.00240629]
[1768238790994,0.16075,3112.9,3111.3,0.00240629]
[1768238791194,0.16075,3112.9,3111.3,0.13672969]
[1768238791599,4.475,3113.0,3111.3,0.13672969]
[1768238791801,0.00415932,3113.3,3111.3,0.13672969]
[1768238791997,5.3737645,3113.2,3111.3,0.13672969]
[1768238792200,0.8997645,3113.1,3111.3,0.13672969]
[1768238792400,0.8997645,3113.0,3111.3,0.13672969]
[1768238792797,1.26,3113.1,3111.3,0.13672969]
[1768238793301,0.90022745,3113.0,3111.3,0.13672969]
[1768238793602,1.26,3113.1,3111.3,0.13672969]
[1768238794400,0.90058528,3113.0,3111.3,0.13672969]
[1768238794601,1.26,3113.1,3111.3,0.13672969]
[1768238794797,0.16073,3113.2,3111.3,0.13672969]
[1768238795103,0.9005291,3113.1,3111.3,0.13672969]
[1768238795297,0.00415932,3113.3,3111.3,0.29754969]
[1768238795497,0.00415932,3113.3,3111.4,0.14308961]
[1768238795893,0.00415932,3113.3,3111.3,0.16322629]
[1768238795894,0.00415932,3113.3,3111.6,0.14308961]
[1768238796589,0.00415932,3113.3,3111.6,0.16081]
[1768238796795,0.00415932,3113.3,3112.0,0.14308961]
[1768238796996,0.00415932,3113.3,3112.2,0.14308961]
[1768238797200,4.178,3114.2,3112.2,0.30386961]
[1768238797505,0.90145128,3114.1,3112.3,0.14308961]
[1768238797705,0.90145128,3114.0,3112.3,0.14308961]
[1768238798004,4.178,3114.2,3112.3,0.14308961]
[1768238798190,0.00327011,3114.0,3112.3,0.14308961]
[1768238798396,0.00327011,3114.0,3112.2,0.16078]
[1768238798397,0.00327011,3114.0,3112.5,0.14308961]
[1768238799503,0.00327011,3114.0,3112.5,0.30385961]
[1768238799702,0.00327011,3114.0,3112.6,0.14308961]
[1768238801209,0.00327011,3114.0,3112.9,0.14308961]
[1768238802013,0.16063,3115.2,3113.3,0.14308961]
[1768238802203,0.90107723,3115.1,3113.3,0.14308961]
[1768238802404,0.16063,3115.2,3113.3,0.14308961]
[1768238802602,4.474,3115.3,3113.3,0.14308961]
[1768238802603,4.474,3115.3,3113.4,0.14308961]
[1768238802802,0.9007933,3115.2,3113.4,0.14308961]
[1768238802996,4.6379521,3115.3,3113.4,0.14308961]
[1768238803798,0.0033321,3115.3,3113.4,0.30380961]
[1768238804003,0.0033321,3115.3,3113.5,0.14308961]
[1768238804212,0.0033321,3115.3,3113.5,0.14610905]
[1768238805809,0.0033321,3115.3,3113.7,0.14308961]
[1768238808311,0.0033321,3115.3,3114.2,0.14308961]
[1768238808614,4.474,3116.4,3114.4,0.14308961]
[1768238808802,4.474,3116.4,3114.6,0.14308961]
[1768238809610,4.47688813,3116.4,3114.6,0.14308961]
[1768238810507,0.16057,3116.3,3114.6,0.14308961]
[1768238811918,0.16059,3115.9,3113.9,0.30377961]
[1768238812107,0.1606,3115.7,3114.0,0.14308961]
[1768238815815,4.6336,3115.7,3114.0,0.14308961]
[1768238820413,4.473,3115.7,3114.2,0.14308961]
[1768238820607,0.00288813,3116.4,3114.8,0.14308961]
[1768238820812,0.00288813,3116.4,3114.2,0.14308961]
[1768238820813,0.16345813,3116.4,3114.2,0.14308961]
[1768238821013,0.05594114,3116.3,3114.2,0.14308961]
[1768238821315,0.1606,3115.8,3114.2,0.14308961]
[1768238821717,0.05594114,3116.3,3114.2,0.14308961]
[1768238821718,0.16061,3115.6,3114.2,0.14308961]
[1768238821922,0.16061,3115.5,3113.7,0.14308961]
[1768238830834,1.27523844,3115.4,3113.7,0.14308961]
[1768238831031,0.90404638,3115.3,3113.7,0.14308961]
[1768238831231,0.90450189,3115.2,3113.7,0.14308961]
[1768238831534,0.16061,3115.5,3113.7,0.14308961]
[1768238831835,1.27563737,3115.4,3113.7,0.14308961]
[1768238832026,0.90429414,3115.3,3113.7,0.14308961]
[1768238832227,0.16061,3115.5,3113.7,0.14308961]
[1768238832437,1.2759496,3115.4,3113.7,0.14308961]
[1768238832636,1.2759496,3115.3,3113.7,0.14308961]
[1768238832852,1.258,3115.8,3113.9,0.14662798]
[1768238833051,1.27625092,3115.7,3113.9,0.14662798]
[1768238833349,1.27625092,3115.6,3113.9,0.14662798]
[1768238833651,0.90471765,3115.5,3113.9,0.14662798]
[1768238833853,1.41859,3115.9,3113.9,0.14662798]
[1768238834153,1.27627223,3115.8,3113.9,0.30731798]
[1768238834354,1.27627223,3115.7,3114.0,0.14662798]
[1768238834556,1.27627223,3115.6,3114.0,0.14662798]
[1768238834862,0.90473353,3115.5,3114.0,0.14662798]
[1768238835049,1.41859,3115.9,3114.0,0.14662798]
[1768238835247,1.27662763,3115.8,3114.0,0.14662798]
[1768238835451,1.27662763,3115.7,3114.0,0.14662798]
[1768238835659,1.27662763,3115.6,3114.0,0.14662798]
[1768238835961,0.90499392,3115.5,3114.0,0.14662798]
[1768238836164,1.41859,3115.9,3114.0,0.14662798]
[1768238836349,1.27683272,3115.8,3114.0,0.14662798]
[1768238836658,0.16062,3115.4,3114.0,0.14662798]
[1768238836850,1.27683272,3115.3,3114.0,0.14662798]
[1768238837050,0.16062,3115.4,3114.0,0.14662798]